Cogmind - Beta 15 @@@ ROGUE MODE // 2025.09.30 @ 20:03:23 Player: shapeshifter Result: Destroyed by as-54963 with Assembled Maul Performance ------------- Evolutions (0) 0 Regions Visited (2) 400 Robots Destroyed (15) 75 Value Destroyed (139) 139 Prototype IDs (0) 0 Alien Tech Used (0) 0 Bonus (0) 0 TOTAL SCORE: 614 Bonus ------- None Cogmind --------- Core Integrity 0/250 Matter 241/300 Energy 100/100 System Corruption 9% Temperature Cool (6) Movement Core (50) Location -10/Mines Parts ------- > --- POWER (1) -------- (None) > --- PROPULSION (2) --- (None) > --- UTILITY (2) ------ (None) > --- WEAPON (2) ------- Light Assault Rifle > --- INVENTORY (5) ---- Ion Engine Large Battery (200) Structural Scanner Light Armor Plating Hammer Peak State ------------ > --- POWER ------------ Ion Engine > --- PROPULSION ------- Light Treads Light Treads > --- UTILITY ---------- Small Storage Unit Seismic Detector > --- WEAPON ----------- Medium Laser Medium Laser > --- INVENTORY -------- Ion Engine Aluminum Leg Aluminum Leg Wheel Compact Wheel Improved Terrain Scanner Light Armor Plating Light Assault Rifle [Rating: 8] Favorites ----------- Power Ion Engine Engine Ion Engine Propulsion Wheel Treads Light Treads Wheel Wheel Utility Small Storage Unit Device Seismic Detector Storage Small Storage Unit Weapon Medium Laser Energy Gun Medium Laser Ballistic Gun Light Assault Rifle Launcher Rocket Launcher Build | -11 -10 -10 ------- Run | Yrd Mat Min Slots Evolved . | . . . Power . | . . . Propulsion . | . . . Utility . | . . . Weapon . | . . . Parts Attached 14 | 7 5 2 Power 1 | 1 . . Engine 1 | 1 . . Core . | . . . Reactor . | . . . Propulsion 7 | 2 4 1 Treads 2 | 2 . . Leg . | . . . Wheel 5 | . 4 1 Hover . | . . . Flight . | . . . Utility 2 | 2 . . Device 1 | 1 . . Storage 1 | 1 . . Processor . | . . . Hackware . | . . . Protection . | . . . Artifact . | . . . Weapon 4 | 2 1 1 Energy Gun 2 | 2 . . Energy Cannon . | . . . Ballistic Gun 1 | . 1 . Ballistic Cannon . | . . . Launcher 1 | . . 1 Special Weapon . | . . . Impact Weapon . | . . . Slashing Weapon . | . . . Piercing Weapon . | . . . Special Melee Weapon . | . . . Unidentified Prototypes . | . . . Parts Lost 7 | . . 7 Power 1 | . . 1 Propulsion 3 | . . 3 Utility 1 | . . 1 Weapon 2 | . . 2 Highest Loss Streak 5 | . . 5 To Critical Strikes . | . . . Average Backups 7 | 5 7 7 Power . | . 1 1 Propulsion 2 | 3 2 . Utility 2 | . 3 3 Weapon 1 | . 1 1 Tool/Special . | . . . Unused Backups 9 | . 3 6 Power 1 | . . 1 Propulsion 2 | . 2 . Utility 5 | . 1 4 Weapon 1 | . . 1 Tool/Special . | . . . Average Slot Usage (%) 90 | . 98 61 Engine 12 | . 13 5 Treads 9 | . 12 . Wheel 15 | . 15 16 Device 12 | . 14 5 Storage 13 | . 14 11 Energy Gun 17 | . 20 6 Ballistic Gun 8 | . 7 13 Peak Build Rating 8 | 7 8 8 Average Rating 6 | 5 7 4 On Entrance 4 | . 7 7 Naked Turns . | . . . Heaviest Build 15 | 15 15 14 Greatest Support 40 | 40 40 20 Greatest Overweight (x) 1 | . . 1 Average Overweight (x) . | . . . Largest Inventory Capacity 8 | 8 8 8 Average Capacity 7 | 7 8 7 Most Carried 8 | 8 8 8 Average Carried 7 | 5 7 7 Final Capacity 8 | 8 8 5 Final Carried 7 | 7 7 5 Class Distribution -------------------- 100% | Mutant Dominant Class ---------------- Mutant | -10/Materials Mutant | -10/Mines Resources | -11 -10 -10 ----------- Run | Yrd Mat Min Matter Collected 405 | 270 87 48 Remotely . | . . . Salvage Created 322 | 138 151 33 Parts 33 | 9 17 7 Haulers Intercepted 1 | . 1 . Recyclers Shooed 1 | 1 . . Parts Field Recycled . | . . . Retrieved Matter . | . . . Parts Self-Destructed . | . . . Prevented . | . . . Kills | -11 -10 -10 ------- Run | Yrd Mat Min Combat Hostiles Destroyed 12 | . 7 5 Guns 7 | . 7 . AOE 5 | . . 5 Classes Destroyed 5 | 2 2 1 Tunneler 3 | 2 . 1 Hauler 1 | . 1 . Recycler 1 | 1 . . Swarmer 10 | . 7 3 Assembled 2 | . . 2 Best Kill Streak 7 | 2 7 4 Combat Bots Only 6 | . 6 3 Max Kills in Single Turn 3 | 1 1 3 Gunslinging . | . . . Exploded 3 | . . 3 Melee . | . . . Uniques/NPCs Destroyed . | . . . Combat | -11 -10 -10 -------- Run | Yrd Mat Min Hostile Shots Fired 81 | . 34 47 Missed 22 | . 12 10 Hits 59 | . 22 37 Melee 9 | . . 9 Projectile 50 | . 22 28 Critical Strikes 1 | . . 1 Damage Taken 830 | . 170 660 Core 268 | . 65 203 Absorbed by Shields . | . . . Core Remaining (%) 100 | 100 . . Volleys Fired 36 | 5 19 12 Largest 2 | 2 2 2 Hottest 100 | 100 100 70 Shots Fired 61 | 10 38 13 Gun 54 | 10 38 6 Cannon . | . . . Launcher 7 | . . 7 Special . | . . . Kinetic 22 | . 17 5 Thermal 32 | 10 21 1 Explosive 7 | . . 7 Electromagnetic . | . . . Robot Hit Streak 8 | 7 8 1 Robot Miss Streak 6 | . 6 3 Penetration Max . | . . . Secondary Targets 3 | . 3 . Max Gunslinging Chain 1 | . 1 . Shots Hit Robots 31 | 7 19 5 Core Hits 26 | 4 10 12 Critical Kills . | . . . Critical Parts Destroyed . | . . . Critical Strikes 3 | 1 2 . Burn 3 | 1 2 . Melee Attacks . | . . . Impact . | . . . Slashing . | . . . Piercing . | . . . Sneak Attacks . | . . . Combat Hostiles . | . . . Follow-up Attacks . | . . . Damage Inflicted 770 | 101 206 463 Guns 351 | 101 206 44 Cannons . | . . . Explosions 419 | . . 419 Melee . | . . . Ramming . | . . . Kinetic 100 | . 56 44 Thermal 251 | 101 150 . Explosive 419 | . . 419 Electromagnetic . | . . . Impact . | . . . Slashing . | . . . Piercing . | . . . Highest Corruption 9 | . . 9 Average Corruption 7 | . . 7 Corruption Purged . | . . . Corruption Blocked . | . . . Effects 4 | . . 4 Message Errors 1 | . . 1 Energy Discharges 1 | . . 1 Data Loss (minor) 1 | . . 1 Data Loss (major) 1 | . . 1 Overload Shots . | . . . Overflow Damage 11 | . . 11 Projectiles . | . . . Explosions 11 | . . 11 Melee . | . . . Knockbacks . | . . . Impact . | . . . Kinetic . | . . . Secondary . | . . . Self-Inflicted Damage 54 | . . 54 Shots 2 | . . 2 Rammed . | . . . Targets Rammed . | . . . Kicked . | . . . Crushed . | . . . Highest Temperature 160 | 117 160 20 Average Temperature 60 | 44 70 9 Received Heat Transfer 56 | . . 56 Siege Activations . | . . . Martial Activations . | . . . Shielding Activations . | . . . Robots Disrupted . | . . . Combat Hostiles . | . . . Robots Corrupted . | . . . Combat Hostiles . | . . . Parts Fried . | . . . Impact Corruptions . | . . . Robots Melted . | . . . Combat Hostiles . | . . . Parts Melted 1 | . 1 . Heat Transferred 962 | 370 592 . Parts Sabotaged . | . . . Parts Stolen . | . . . Parts Stripped . | . . . Power Chain Reactions . | . . . Alert | -11 -10 -10 ------- Run | Yrd Mat Min Maximum Alert Level . | . . . Low Security (%) 100 | 100 100 100 Level 1 . | . . . Level 2 . | . . . Level 3 . | . . . Level 4 . | . . . Level 5 . | . . . High Security . | . . . Max Security . | . . . Peak Influence 138 | 5 138 111 Initial 14 | . . 14 Average 38 | . 45 47 Influence Increases 356 | 15 214 127 Destroy 0b10 Robot/C 200 | . 140 60 Destroy 0b10 Robot/NC 25 | 15 5 5 Destroy Leader 32 | . 22 10 Successful Hack 17 | . 17 . Disable Machine 15 | . . 15 Destroy Structure 37 | . . 37 Lose Combat Pursuer 30 | . 30 . Influence Decreases 356 | 15 177 164 Entered New Map 23 | . . 23 Time Decay 272 | 15 177 80 Lost Part 61 | . . 61 Squads Dispatched . | . . . Investigation . | . . . Extermination . | . . . Reinforcement . | . . . Assault . | . . . Garrison . | . . . Intercept . | . . . Searches Triggered . | . . . Construction Impeded . | . . . Haulers Reinforced . | . . . Active Scanning Responses . | . . . Cargo Convoy Interrupts . | . . . Stealth | -11 -10 -10 --------- Run | Yrd Mat Min Distress Signals . | . . . Communications Jammed . | . . . Distress Signals . | . . . Times Spotted 30 | . 10 20 Peak Tracking Total 20 | . 3 20 Tactical Retreats 1 | . 1 . Traps | -11 -10 -10 ------- Run | Yrd Mat Min Traps Triggered 3 | . 3 . Indirectly . | . . . Trap Hack Attempts . | . . . Triggered . | . . . Disarmed . | . . . Reprogrammed . | . . . Reused . | . . . Traps Extracted . | . . . Installed . | . . . Triggered . | . . . Machines | -11 -10 -10 ---------- Run | Yrd Mat Min Machines Disabled 1 | . . 1 Max in Single Turn 1 | . . 1 Machines Repaired . | . . . Machines Dismantled . | . . . Machines Sabotaged . | . . . Overloaded Fab Kills . | . . . Hacking | -11 -10 -10 --------- Run | Yrd Mat Min Machines Accessed 8 | . 8 . Terminals 6 | . 6 . Fabricators . | . . . Repair Stations . | . . . Recycling Units 2 | . 2 . Scanalyzers . | . . . Garrison Access . | . . . Total Hacks 19 | . 19 . Successful 13 | . 13 . Failed 6 | . 6 . Catastrophic . | . . . Database Lockouts . | . . . Manual 13 | . 13 . Terminals 17 | . 17 . Fabricators . | . . . Repair Stations . | . . . Recycling Units 2 | . 2 . Scanalyzers . | . . . Garrison Access . | . . . Terminal Hacks 3 | . 3 . Branch Access Points 1 | . 1 . Hauler Manifests 1 | . 1 . Zone Layout 1 | . 1 . Fabricator Hacks . | . . . Repair Station Hacks . | . . . Recycling Unit Hacks 2 | . 2 . Retrieve Components 2 | . 2 . Scanalyzer . | . . . Garrison Access Hacks . | . . . Unauthorized Hacks 8 | . 8 . Terminals 8 | . 8 . Botnet 3 | . 3 . Skim 5 | . 5 . Fabricators . | . . . Repair Stations . | . . . Recycling Units . | . . . Scanalyzers . | . . . Garrison Access . | . . . Data Cores Recovered . | . . . Used . | . . . Hacking Detections 5 | . 5 . Full Trace Events . | . . . Feedback Events . | . . . Feedback Blocked . | . . . Robot Schematics Acquired . | . . . Robots Built . | . . . Authchips . | . . . Time . | . . . Total Robot Build Rating . | . . . Part Schematics Acquired . | . . . Parts Built . | . . . Authchips . | . . . Time . | . . . Total Part Build Rating . | . . . Parts Repaired . | . . . Time . | . . . Parts Recycled . | . . . Recycled Matter . | . . . Retrieved Matter . | . . . Retrieved Components 13 | . 13 . Parts Scanalyzed . | . . . Part Schematics Acquired . | . . . Parts Damaged . | . . . Bothacking | -11 -10 -10 ------------ Run | Yrd Mat Min Used RIF Installer . | . . . Robots Hacked . | . . . Non-combat . | . . . Combat . | . . . Robot Hacks Applied . | . . . Relay Couplers Released . | . . . Fabnet Peak Effective % . | . . . Robots Rewired . | . . . Allies Hacked . | . . . Hacks Repelled . | . . . Allies | -11 -10 -10 -------- Run | Yrd Mat Min Total Allies . | . . . Largest Group . | . . . Highest-Rated Group . | . . . Highest-Rated Ally . | . . . Total Orders . | . . . Ally Attacks . | . . . Total Damage . | . . . Kills . | . . . Allies Corrupted . | . . . Allies Melted . | . . . Intel | -11 -10 -10 ------- Run | Yrd Mat Min Active Infowar (turns) 758 | 24 661 73 Seismic 758 | 24 661 73 Robot Analysis Total . | . . . Derelict Logs Recovered 1 | . . 1 Drone Launches . | . . . Drone Recoveries . | . . . Exploration | -11 -10 -10 ------------- Run | Yrd Mat Min Turns Passed 1003 | 159 661 183 Spaces Moved 627 | 89 342 196 Core 68 | 19 . 49 Treads 247 | 70 177 . Legs . | . . . Wheels 312 | . 165 147 Hover . | . . . Flight . | . . . Fastest Speed 50 | 50 80 50 Average Speed 108 | 136 121 73 Slowest Speed 160 | 160 160 100 Overloaded Moves . | . . . Propulsion Burnouts . | . . . Robots Hopped . | . . . Potential Cave-ins . | . . . Cave-ins Triggered . | . . . Exploration Rate (%) 39 | 6 62 50 Regions Visited 2 Branch Regions 1 Pre-discovered Areas 4 | . 3 1 Known Exits Taken 1 | . 1 . Unknown Exits Taken 1 | 1 . . Scrap Searched 1 | . . 1 Spaces Dug . | . . . Terrain Destroyed 67 | . . 67 Melee . | . . . Projectile . | . . . AOE 67 | . . 67 Terrain Rammed . | . . . Walls Destroyed . | . . . Machines Disabled . | . . . Actions | -11 -10 -10 --------- Run | Yrd Mat Min Total 893 | 116 553 224 Wait 182 | 3 171 8 Move 625 | 88 341 196 Hop . | . . . Pick Up 22 | 13 8 1 Fast Attach 4 | 1 3 . Attach 11 | 6 3 2 Detach . | . . . Swap 5 | . 2 3 Drop 8 | . 6 2 Fire 36 | 5 19 12 Melee . | . . . Ram . | . . . Kick . | . . . Crush . | . . . Escape Stasis . | . . . Rewire . | . . . Trap . | . . . Miscellaneous . | . . . Route ------- -11/Scrapyard -10/Materials (discovered 5 exits: [*Mat x3] / *Min / Sub) -10/Mines (discovered 3 exits: [*Mat x2] / *Sub) History --------- Turn | Location | Event 12 | -11/Scrapyard | Discovered new exit (range 15) 160 | -11/Scrapyard | Entered Materials 333 | -10/Materials | Build established: Mutant 414 | -10/Materials | Discovered new exit (range 10) 501 | -10/Materials | Discovered new exit (range 9) 505 | -10/Materials | Identified exit to Mines 587 | -10/Materials | Discovered new exit (range 15) 631 | -10/Materials | Identified exit to Subcaves 631 | -10/Materials | Learned location of 1 exit from Materials 692 | -10/Materials | Learned 2 Storage zone layouts 710 | -10/Materials | Learned Storage stockpile data 720 | -10/Materials | Learned 4 Subcaves zone layouts 723 | -10/Materials | Learned location of Recycling (-7) 727 | -10/Materials | Learned 2 Storage zone layouts 743 | -10/Materials | Learned location of 2 exits from Subcaves 821 | -10/Materials | Entered Mines 828 | -10/Mines | Received a Rocket Launcher from a helpful Derelict 837 | -10/Mines | Met a Derelict bent on vengeance 844 | -10/Mines | Discovered exit to Subcaves (range 11) 862 | -10/Mines | Learned location of Zion (-7) 883 | -10/Mines | Assembled infested the area 896 | -10/Mines | Core integrity fell below 50% 926 | -10/Mines | Lost 5 parts (1p2n1u1w) 948 | -10/Mines | Discovered new exit (range 7) 987 | -10/Mines | Discovered new exit (range 6) 1001 | -10/Mines | Core integrity fell below 20% 1004 | -10/Mines | Destroyed by as-54963 with Assembled Maul Last Messages --------------- 00931_ K-01 Serf collects debris. 00940_ as-54963 sneak attacks. 00940_ K-01 Serf system corrupted by crushing effect. 00941_ K-01 Serf system terminally corrupted. 00948_ Knocked back. 00948_ EXIT=FOUND 00962_ Searching scrap... 00962_ Found Hcp. Matter Pod. 00962_ Found Terrain Scanner. 00962_ Found 43 Matter. 00963_ Acquired 43 matter. 00969_ Wheel destroyed. 00969_ System corrupted by crushing effect (+2). 00972_ Dropped Propulsion Shielding. 00973_ R F 00999_ Med. Laser destroyed. Map ----- +----------------------------------------------------+ | | | | | | | | | | | | | | | | | | | | | | | | | | | | | ?????????????????????????????????????????????????? | | ?????????????????????????????????####????????????? | | ????????????????????????????????## ##???????????? | | ???????????????????????????????## #???????????? | | ??????????????????????????????## #???????????? | | ?????????????????????????????## #????????????? | | ?????????????????????????##### ##???????????? | | ?????????????????????????# ########????? | | ?????????????????????????# ## #????? | | ??????????# ?????????# ## < #?#### | | ???????????# ####a### #### ### # | | ???????????# g @ #?## #??# | | ???????????# g #??# #??##### | | ????????????# # #####?# #??????# | | ????????????#### ???# ???????# #?????# | | ????????????????????#????????# #?????#### | | ???????????????????????????? ##????????? | | ??????????????????????????? #?????????? | | ??????????????????????????#### #?????????? | | ????????????????????????????? ## #?????????? | | ???????????????????????????? ### #?????????? | | ?????????????????????????????? ##?? #?????????? | | ????????????????????????????????#???? ??????????? | | ????????????????????????????????????? ??????????? | | ?????????????????????????????????????????????????? | | ?????????????????????????????????????????????????? | | ?????????????????????????????????????????????????? | | ?????????????????????????????????????????????????? | | ?????????????????????????????????????????????????? | | ?????????????????????????????????????????????????? | | ?????????????????????????????????????????????????? | | ?????????????????????????????????????????????????? | | ?????????????????????????????????????????????????? | | ?????????????????????????????????????????????????? | | ?????????????????????????????????????????????????? | | ?????????????????????????????????????????????????? | +----------------------------------------------------+ Best States ------------- Heat Dissipation 25 Energy Generation 10 Energy Capacity 250 Matter Stores 300 Matter Capacity 300 Sight Range 16 Terrain Scan Density 10 Evasion (%) 50 Recoil Reduction 2 Item Schematics ----------------- None Robot Schematics ------------------ None Fabricated ------------ Nothing Repaired ---------- Nothing Alien Tech Used ----------------- None Achievements -------------- None Challenges ------------ None Game ------ Seed WarpLaserStabilizer Manual? 0 Play Time 00:08:17 Cumulative 339.6 hours Start 2025.09.30 @ 19:57:11 End 2025.09.30 @ 20:03:23 Sessions 1 Manual Loads 0 Difficulty Rogue Special Mode None Game No. 450 Rogue 450 Adventurer 0 Explorer 0 Win Type - Total 11 Types 6/0/1/2/1/0/1/0/0/0 Lore% 87 Gallery% 82 Achievement% 69 Wizard Run 0 Options --------- Layout 0 ASCII 0 Keyboard 0 Movement Mouse Keybinds 0 Fullscreen 1 Font 18/X11 Map View 76x50 Zoom Use 0% Tactical HUD 1 Map Filters NONE Filters NONE Steam 1 RUN: 0d8b47ca-92f0-431e-be44-ee00837fc579